bitfinex-derivatives/quotes_BTCF0:USTF0_20240917
["timestamp","ask_amount","ask_price","bid_price","bid_amount"]
[1726561192305,0.552083,58755.0,58754.0,0.1053939]
[1726561193799,0.552083,58755.0,58754.0,0.0008]
[1726561193994,0.552083,58755.0,58754.0,0.10546164]
[1726561194508,0.552083,58755.0,58754.0,0.10546099]
[1726561194711,0.552083,58755.0,58754.0,0.0008]
[1726561195005,0.552083,58755.0,58754.0,0.10545264]
[1726561195210,0.552083,58755.0,58754.0,0.0008]
[1726561195398,0.552083,58755.0,58754.0,0.10545332]
[1726561196307,0.552083,58755.0,58754.0,0.10542952]
[1726561200402,0.00618,58755.0,58754.0,0.55133352]
[1726561200605,0.00618,58755.0,58754.0,1.87900629]
[1726561200806,0.0004,58757.0,58756.0,0.085101]
[1726561201013,0.0004,58757.0,58756.0,0.41460329]
[1726561201209,0.0004,58757.0,58756.0,1.52453879]
[1726561201603,0.00956257,58761.0,58760.0,0.085096]
[1726561201808,0.3608,58764.0,58763.0,0.085091]
[1726561202010,0.3608,58764.0,58763.0,0.28970714]
[1726561202308,0.3608,58764.0,58763.0,0.3909316]
[1726561203209,0.3608,58764.0,58763.0,0.28930714]
[1726561203408,0.3608,58764.0,58763.0,0.28924931]
[1726561203809,0.3648,58764.0,58763.0,0.28924931]
[1726561204320,0.37741217,58764.0,58763.0,0.28924931]
[1726561204817,0.37741217,58764.0,58763.0,0.18924931]
[1726561205520,0.47741217,58764.0,58763.0,0.27387821]
[1726561206204,0.47741217,58764.0,58763.0,0.27403941]
[1726561207212,0.47741217,58764.0,58763.0,0.1697199]
[1726561208720,0.47741217,58764.0,58763.0,0.085091]
[1726561211416,0.47741217,58764.0,58762.0,0.0846289]
[1726561211718,0.085491,58763.0,58761.0,0.0016]
[1726561212220,0.0004,58762.0,58761.0,0.0016]
[1726561213811,0.0024,58762.0,58761.0,0.0016]
[1726561214326,0.0034,58762.0,58761.0,0.0016]
[1726561215824,0.0034,58762.0,58761.0,0.086694]
[1726561217523,0.0034,58762.0,58761.0,0.0016]
[1726561218024,0.088493,58762.0,58761.0,0.0016]
[1726561218533,0.088493,58762.0,58761.0,0.06928355]
[1726561219223,0.088493,58762.0,58761.0,0.15437755]
[1726561219613,0.088493,58762.0,58761.0,0.086694]
[1726561220017,0.088493,58762.0,58761.0,0.15438116]
[1726561220448,0.088493,58762.0,58761.0,0.086694]
[1726561220449,0.0034,58762.0,58761.0,0.086694]
[1726561222823,0.0034,58762.0,58761.0,0.37565421]
[1726561223025,0.0034,58762.0,58761.0,0.29102531]
[1726561225532,0.0034,58762.0,58761.0,0.186694]
[1726561225728,0.0034,58762.0,58761.0,0.29096768]
[1726561227224,0.0034,58762.0,58761.0,0.29100394]
[1726561227733,0.0034,58762.0,58761.0,0.2910051]
[1726561228129,0.0034,58762.0,58761.0,0.39256687]
[1726561228729,0.0034,58762.0,58761.0,0.2910051]
[1726561229128,0.0034,58762.0,58761.0,0.41543866]
[1726561229732,0.0034,58762.0,58761.0,0.39266589]
[1726561231130,0.0034,58762.0,58761.0,0.6518051]
[1726561231732,0.0034,58762.0,58761.0,0.77599949]
[1726561232032,0.0034,58762.0,58761.0,0.77599368]
[1726561232736,0.0034,58762.0,58761.0,0.7368991]
[1726561232942,0.00255268,58767.0,58766.0,0.170174]
[1726561233127,0.00255268,58767.0,58766.0,0.49909547]
[1726561234229,0.00855268,58767.0,58766.0,0.49909547]
[1726561234738,0.01655268,58767.0,58766.0,0.49909547]
[1726561235644,0.014,58767.0,58766.0,0.49909547]
[1726561237542,0.014,58767.0,58766.0,0.50850573]
[1726561239150,0.014,58767.0,58766.0,0.38429536]
[1726561239860,0.014,58767.0,58766.0,0.38378071]
[1726561241533,0.014,58767.0,58766.0,0.18928345]
[1726561241743,0.014,58767.0,58766.0,0.29070442]
[1726561242149,0.114,58767.0,58766.0,0.0004]
[1726561242345,0.114,58767.0,58766.0,0.05113378]
[1726561242642,0.1593,58767.0,58766.0,0.0004]
[1726561243646,0.244386,58767.0,58766.0,0.0004]
[1726561244250,0.605186,58767.0,58766.0,0.0004]
[1726561245537,0.61468895,58767.0,58766.0,0.0004]
[1726561248440,0.085088,58765.0,58764.0,0.05073378]
[1726561248650,0.085088,58765.0,58762.0,0.06763946]
[1726561248651,0.0004,58765.0,58762.0,0.05073894]
[1726561248955,0.0004,58765.0,58756.0,0.0851]
[1726561248956,0.085094,58761.0,58756.0,0.0891]
[1726561249149,0.445894,58761.0,58756.0,0.0851]
[1726561249452,0.446694,58761.0,58756.0,0.0851]
[1726561249648,0.085098,58759.0,58756.0,0.0851]
[1726561249856,0.1008,58758.0,58756.0,0.0851]
[1726561250551,0.185899,58758.0,58756.0,0.0851]
[1726561250752,0.185899,58758.0,58757.0,0.00555286]
[1726561255247,0.19549336,58758.0,58757.0,0.00555286]
[1726561258053,0.01039436,58758.0,58757.0,0.09065286]
[1726561258255,0.0008,58758.0,58757.0,0.23365286]
[1726561258442,0.00255292,58764.0,58763.0,0.085091]
[1726561258643,0.00255292,58764.0,58763.0,0.185891]
[1726561259749,0.00555292,58764.0,58763.0,0.185891]
[1726561260347,0.00955292,58764.0,58763.0,0.185891]
[1726561268358,0.00955292,58764.0,58763.0,0.085891]
[1726561268657,0.00955292,58764.0,58763.0,0.185891]
[1726561270861,0.00955292,58764.0,58763.0,0.27034359]
[1726561271366,0.00955292,58764.0,58763.0,0.37350243]
[1726561271556,0.00955292,58764.0,58763.0,0.28904984]
[1726561273768,0.00955292,58764.0,58763.0,0.27043051]
[1726561274565,0.00955292,58764.0,58763.0,0.37366423]
[1726561274961,0.00955292,58764.0,58763.0,0.28912472]
[1726561275568,0.00955292,58764.0,58763.0,0.37369264]
[1726561276465,0.00955292,58764.0,58763.0,0.27369194]
[1726561276672,0.00955292,58764.0,58763.0,0.27369094]
[1726561276872,0.00955292,58764.0,58763.0,0.085891]
[1726561277273,0.00955292,58764.0,58763.0,0.0008]
[1726561279879,0.00955292,58764.0,58763.0,0.085891]
[1726561280081,0.00955292,58764.0,58763.0,0.18913034]
[1726561282774,0.00955292,58764.0,58763.0,0.2737365]
[1726561282980,0.00955292,58764.0,58763.0,0.18913034]
[1726561283274,0.00955292,58764.0,58763.0,0.27373561]
[1726561283868,0.00955292,58764.0,58763.0,0.18913034]
[1726561284469,0.00955292,58764.0,58763.0,0.27375792]
[1726561284675,0.00955292,58764.0,58763.0,0.18913034]
[1726561286073,0.00955292,58764.0,58763.0,0.085891]
[1726561287473,0.00955292,58764.0,58763.0,0.18935932]
[1726561288780,0.00955292,58764.0,58763.0,0.085891]
[1726561292780,0.00955292,58764.0,58757.0,0.00435286]
[1726561292976,0.3616,58758.0,58757.0,0.00255286]
[1726561293782,0.4616,58758.0,58757.0,0.00255286]
[1726561293985,0.4616,58758.0,58757.0,0.10630622]
[1726561294572,0.4616,58758.0,58757.0,0.10930622]
[1726561295285,0.3616,58758.0,58757.0,0.10930622]
[1726561295478,0.0008,58758.0,58757.0,0.19440622]
[1726561295891,0.0008,58758.0,58757.0,0.24110622]
[1726561298084,0.0008,58758.0,58757.0,0.40110622]
[1726561299483,0.0008,58758.0,58757.0,0.50277743]
[1726561299683,0.0008,58758.0,58757.0,0.50277673]
[1726561299870,0.0008,58758.0,58757.0,0.34277673]
[1726561301079,0.0008,58758.0,58757.0,0.24110622]
[1726561301381,0.0008,58758.0,58757.0,0.34277673]
[1726561302380,0.3616,58758.0,58757.0,0.10930622]
[1726561302585,0.3616,58758.0,58757.0,0.10920369]
[1726561303384,0.3616,58758.0,58757.0,0.19394046]
[1726561305488,0.446699,58758.0,58757.0,0.19394046]
[1726561307586,0.446699,58758.0,58757.0,0.09028963]
[1726561308190,0.3616,58758.0,58757.0,0.27903507]
[1726561308579,0.3616,58758.0,58757.0,0.27903166]
[1726561308980,0.0008,58758.0,58757.0,0.43903166]
[1726561309176,0.0008,58758.0,58757.0,0.35429489]
[1726561309384,0.0008,58758.0,58757.0,0.4559654]
[1726561310287,0.0008,58758.0,58757.0,0.35429489]
[1726561310589,0.0008,58758.0,58757.0,0.2959654]
[1726561310778,0.0008,58758.0,58757.0,0.19429489]
[1726561312388,0.0008,58758.0,58757.0,0.1941318]
[1726561312591,0.0008,58758.0,58757.0,0.29580231]
[1726561313086,0.0008,58758.0,58757.0,0.1941318]
[1726561313892,0.3616,58758.0,58757.0,0.1090318]
[1726561314193,0.0008,58758.0,58757.0,0.1090318]
[1726561314583,0.3616,58758.0,58757.0,0.1090318]
[1726561314903,1.717259,58758.0,58757.0,0.003]
[1726561315392,1.717259,58758.0,58757.0,0.07081566]
[1726561315393,1.765759,58758.0,58757.0,0.07081566]
[1726561315785,1.765759,58758.0,58757.0,0.003]
[1726561317795,1.404959,58758.0,58757.0,0.003]
[1726561317997,2.126559,58758.0,58757.0,0.003]
[1726561321889,0.7224,58758.0,58757.0,0.163]
[1726561322189,0.7224,58758.0,58757.0,0.2481]
[1726561322491,0.7224,58758.0,58757.0,0.35176264]
[1726561322492,0.0008,58758.0,58757.0,0.35176264]
[1726561322691,0.0008,58758.0,58757.0,0.45343315]
[1726561323200,0.0008,58758.0,58757.0,0.35176264]
[1726561325187,0.0008,58758.0,58757.0,0.35163463]
[1726561326500,0.0008,58758.0,58757.0,0.19173334]
[1726561327402,0.0008,58758.0,58757.0,0.27643788]
[1726561328003,0.0008,58758.0,58757.0,0.0881]
[1726561331399,0.245899,58758.0,58757.0,0.003]
[1726561337002,0.245899,58758.0,58757.0,0.07078642]
[1726561337203,1.356459,58758.0,58757.0,0.07078642]
[1726561337420,1.356459,58758.0,58757.0,0.003]
[1726561338525,1.441558,58758.0,58757.0,0.003]
[1726561339311,1.27136,58758.0,58751.0,0.06778642]
[1726561339508,0.085109,58751.0,58750.0,0.06778642]
[1726561339811,0.085112,58749.0,58748.0,0.06778642]
[1726561340008,0.085112,58749.0,58743.0,0.09567347]
[1726561340009,0.085113,58748.0,58746.0,0.06778642]
[1726561340311,0.085119,58744.0,58743.0,0.00255347]
[1726561340517,0.446719,58744.0,58743.0,0.00255347]
[1726561341011,0.443719,58744.0,58743.0,0.00255347]
[1726561342413,0.45332004,58744.0,58743.0,0.00255347]
[1726561343416,0.45432004,58744.0,58743.0,0.00255347]
[1726561343619,0.45532004,58744.0,58743.0,0.00255347]
[1726561344814,0.37320104,58744.0,58738.0,0.06778642]
[1726561345017,0.531852,58739.0,58738.0,0.06778642]
[1726561345217,0.446726,58739.0,58731.0,0.07578642]
[1726561345509,0.446726,58739.0,58730.0,0.085138]
[1726561345510,0.5216,58732.0,58730.0,0.085138]
[1726561345720,0.0008,58731.0,58730.0,0.085138]
[1726561346812,0.0018,58731.0,58730.0,0.085138]
[1726561347211,0.0028,58731.0,58730.0,0.085138]
[1726561347613,0.0028,58731.0,58728.0,0.1396]
[1726561347614,0.087938,58731.0,58728.0,0.1396]
[1726561347816,0.0008,58729.0,58728.0,0.1396]
[1726561349125,0.085941,58729.0,58728.0,0.1396]
[1726561349514,0.086941,58729.0,58728.0,0.1396]
[1726561350418,0.087941,58729.0,58728.0,0.1396]
[1726561351417,0.087941,58729.0,58728.0,0.0946]
[1726561354621,0.087941,58729.0,58728.0,0.09436]
[1726561359936,0.447741,58729.0,58728.0,0.09436]
[1726561360127,0.448741,58729.0,58728.0,0.09436]
[1726561361541,0.447741,58729.0,58728.0,0.09436]
[1726561361734,0.448741,58729.0,58728.0,0.09436]
[1726561363746,0.448741,58729.0,58726.0,0.085145]
[1726561363747,0.3636,58729.0,58724.0,0.008]
[1726561363942,0.3636,58729.0,58722.0,0.0491]
[1726561363943,0.085148,58724.0,58722.0,0.0491]
[1726561364152,0.245949,58723.0,58722.0,0.134251]
[1726561365742,0.245949,58723.0,58722.0,0.0491]
[1726561365947,0.246949,58723.0,58722.0,0.0491]
[1726561366848,0.247949,58723.0,58722.0,0.0491]
[1726561367041,0.247949,58723.0,58722.0,0.134251]
[1726561368565,0.247949,58723.0,58722.0,0.20203742]
[1726561368566,0.25772464,58723.0,58722.0,0.20203742]
[1726561368850,0.01257564,58723.0,58722.0,0.20203742]
[1726561369040,0.01257564,58723.0,58722.0,0.134251]
[1726561369457,0.01257564,58723.0,58722.0,0.32385755]
[1726561370154,0.01257564,58723.0,58722.0,0.23913159]
[1726561370459,0.0025541,58732.0,58722.0,1.15039288]
[1726561370643,0.0025541,58732.0,58731.0,0.085138]
[1726561371647,0.0025541,58732.0,58731.0,0.131838]
[1726561373057,0.0025541,58732.0,58731.0,0.21657298]
[1726561374057,0.0025541,58732.0,58731.0,0.23664191]
[1726561374254,0.0025541,58732.0,58731.0,0.131838]
[1726561374759,0.0025541,58732.0,58731.0,0.32147028]
[1726561374946,0.0025541,58732.0,58731.0,0.131838]
[1726561377564,0.3633541,58732.0,58731.0,0.131838]
[1726561379368,0.4484901,58732.0,58731.0,0.0016]
[1726561379567,0.3633541,58732.0,58731.0,0.086738]
[1726561387155,0.3633541,58732.0,58731.0,0.0016]
[1726561387156,0.4484901,58732.0,58731.0,0.0016]
[1726561387765,0.6084901,58732.0,58731.0,0.0016]
[1726561389561,0.6084901,58732.0,58731.0,0.086738]
[1726561392562,0.4484901,58732.0,58731.0,0.086738]
[1726561393961,0.4484901,58732.0,58731.0,0.0016]
[1726561397276,0.4484901,58732.0,58731.0,0.086738]
[1726561397977,0.5484901,58732.0,58731.0,0.086738]
[1726561400781,0.5484901,58732.0,58731.0,0.19185275]
[1726561401777,0.5484901,58732.0,58731.0,0.27682888]
[1726561403071,0.5484901,58732.0,58731.0,0.19189829]
[1726561403284,0.1876901,58732.0,58731.0,0.19189829]
[1726561403589,0.5484901,58732.0,58731.0,0.19189829]
[1726561403778,0.1876901,58732.0,58731.0,0.19189829]
[1726561404091,0.5484901,58732.0,58731.0,0.19189829]
[1726561404781,0.1876901,58732.0,58731.0,0.19189829]
[1726561404983,0.4484901,58732.0,58731.0,0.19189829]
[1726561405381,0.3633541,58732.0,58731.0,0.19189829]
[1726561407584,0.0025541,58732.0,58731.0,0.19189829]
[1726561407785,0.3633541,58732.0,58731.0,0.19189829]
[1726561408999,0.3633541,58732.0,58731.0,0.19191176]
[1726561410192,0.3633541,58732.0,58731.0,0.19190076]
[1726561411405,0.0025541,58732.0,58731.0,0.19190076]
[1726561411599,0.3633541,58732.0,58731.0,0.19190076]
[1726561412711,0.4633541,58732.0,58731.0,0.19190076]
[1726561414011,0.3633541,58732.0,58731.0,0.19191725]
[1726561415908,0.3633541,58732.0,58731.0,0.19191588]
[1726561416202,0.3633541,58732.0,58731.0,0.086738]
[1726561416408,0.3633541,58732.0,58731.0,0.191916]
[1726561416906,0.3633541,58732.0,58731.0,0.19191639]
[1726561417294,0.4484901,58732.0,58731.0,0.19191639]
[1726561419396,0.4484901,58732.0,58731.0,0.19191271]
[1726561422305,0.4522701,58732.0,58731.0,0.19191271]
[1726561423300,0.4522701,58732.0,58731.0,0.10677471]
[1726561428213,0.4522701,58732.0,58731.0,0.10668516]
[1726561429116,0.4522701,58732.0,58731.0,0.0016]
[1726561429312,0.5522701,58732.0,58731.0,0.19182259]
[1726561429507,0.4522701,58732.0,58731.0,0.19182259]
[1726561429711,0.4522701,58732.0,58731.0,0.19179254]
[1726561434319,0.4522701,58732.0,58731.0,0.10665454]
[1726561434524,0.5522701,58732.0,58731.0,0.10665454]
[1726561435012,0.5522701,58732.0,58731.0,0.0016]
[1726561435418,0.5522701,58732.0,58731.0,0.10662923]
[1726561435824,0.5522701,58732.0,58731.0,0.10663383]
[1726561436018,0.5522701,58732.0,58731.0,0.1066337]
[1726561439225,0.5522701,58732.0,58731.0,0.10668725]
[1726561440727,0.4522701,58732.0,58731.0,0.10668725]
[1726561447132,0.4522701,58732.0,58731.0,0.19182525]
[1726561448432,0.4484901,58732.0,58731.0,0.10668725]
[1726561448834,0.5484901,58732.0,58731.0,0.10668725]
[1726561452647,0.5484901,58732.0,58731.0,0.1067762]
[1726561453529,0.1876901,58732.0,58731.0,0.1067762]
[1726561453731,0.5484901,58732.0,58731.0,0.1067762]
[1726561455037,0.1876901,58732.0,58731.0,0.1067762]
[1726561455241,0.5484901,58732.0,58731.0,0.1067762]
[1726561455633,0.1876901,58732.0,58731.0,0.1067762]
[1726561455831,0.5484901,58732.0,58731.0,0.1067762]
[1726561458637,0.7187621,58732.0,58731.0,0.1067762]
[1726561458940,0.085146,58725.0,58723.0,0.004]
[1726561459133,0.085148,58724.0,58719.0,0.0475]
[1726561459336,0.170298,58723.0,58722.0,0.06802956]
[1726561459639,0.085151,58722.0,58721.0,0.06802956]
[1726561460139,0.085151,58722.0,58720.0,0.06802956]
[1726561460140,0.085152,58721.0,58720.0,0.06802956]
[1726561460339,0.085952,58721.0,58720.0,0.06802956]
[1726561460541,0.185952,58721.0,58720.0,0.06802956]
[1726561462240,0.085154,58720.0,58719.0,0.06802956]
[1726561462446,0.185954,58720.0,58719.0,0.06802956]
[1726561463147,0.085155,58719.0,58718.0,0.06802956]
[1726561463352,0.185955,58719.0,58718.0,0.06802956]
[1726561463847,0.27111,58719.0,58718.0,0.06802956]
[1726561464035,0.085157,58718.0,58717.0,0.06802956]
[1726561464235,0.085158,58717.0,58716.0,0.00255455]
[1726561464441,0.085958,58717.0,58716.0,0.00255455]
[1726561464736,0.085158,58717.0,58716.0,0.00255455]
[1726561465453,0.185158,58717.0,58716.0,0.00255455]
[1726561466047,0.186158,58717.0,58716.0,0.00255455]
[1726561466640,0.187158,58717.0,58716.0,0.00255455]
[1726561468244,0.187158,58717.0,58716.0,0.05344783]
[1726561469256,0.19691613,58717.0,58716.0,0.05344783]
[1726561471151,0.19691613,58717.0,58716.0,0.05343467]
[1726561472465,0.19691613,58717.0,58716.0,0.00255455]
[1726561474253,0.19691613,58717.0,58716.0,0.00207455]
[1726561474456,0.19691613,58717.0,58716.0,0.08723355]
[1726561474648,0.09691613,58717.0,58716.0,0.08723355]
[1726561476448,0.19691613,58717.0,58716.0,0.00207455]
[1726561478850,0.55771613,58717.0,58716.0,0.00207455]
[1726561483162,0.55771613,58717.0,58716.0,0.06995089]
[1726561484060,0.19691613,58717.0,58716.0,0.06787634]
[1726561484258,0.55771613,58717.0,58716.0,0.06787634]
[1726561484660,0.55771613,58717.0,58716.0,0.15303534]
[1726561484965,0.55771613,58717.0,58716.0,0.085159]
[1726561488268,0.55771613,58717.0,58716.0,0.1896815]
[1726561490070,0.55771613,58717.0,58716.0,0.1045225]
[1726561493272,0.19691613,58717.0,58716.0,0.18970646]
[1726561493473,0.55771613,58717.0,58716.0,0.18970565]
[1726561495867,0.55771613,58717.0,58716.0,0.10454665]
[1726561497674,0.64287713,58717.0,58716.0,0.10454665]
[1726561497886,0.085165,58712.0,58711.0,0.004]
[1726561498070,0.3616,58712.0,58707.0,0.10215471]
[1726561498265,0.3616,58712.0,58703.0,0.10215471]
[1726561498266,0.1008,58708.0,58703.0,0.10215471]
[1726561498473,0.1008,58708.0,58702.0,0.0481]
[1726561498474,0.085178,58703.0,58702.0,0.0481]
[1726561498774,0.085978,58703.0,58702.0,0.0481]
[1726561499476,0.085181,58701.0,58700.0,0.10215471]
[1726561499775,0.085181,58701.0,58698.0,0.09525539]
[1726561499776,0.185981,58701.0,58698.0,0.09525539]
[1726561499974,0.0008,58699.0,58698.0,0.09525539]
[1726561500279,0.085981,58701.0,58698.0,0.28043939]
[1726561500482,0.185981,58701.0,58698.0,0.18043939]
[1726561502079,0.186981,58701.0,58698.0,0.177884]
[1726561502878,0.087981,58701.0,58698.0,0.177884]
[1726561503177,0.0028,58701.0,58700.0,0.185183]
[1726561505173,0.0028,58701.0,58700.0,0.085183]
[1726561505481,0.0018,58701.0,58700.0,0.085183]
[1726561505680,0.0008,58701.0,58700.0,0.085183]
[1726561505977,0.0008,58701.0,58698.0,0.0927]
[1726561506177,0.1008,58699.0,58698.0,0.0927]
[1726561507181,0.185984,58699.0,58698.0,0.0927]
[1726561507377,0.186984,58699.0,58698.0,0.0927]
[1726561507887,0.186984,58699.0,58698.0,0.277886]
[1726561507888,0.0018,58699.0,58698.0,0.277886]
[1726561508375,0.0018,58699.0,58698.0,0.177886]
[1726561508775,0.0018,58699.0,58698.0,0.0927]
[1726561508978,0.085189,58696.0,58693.0,0.10215471]
[1726561509176,0.3636,58699.0,58695.0,0.1]
[1726561509392,0.547985,58699.0,58698.0,0.06795885]
[1726561510375,0.546985,58699.0,58698.0,0.06795885]
[1726561511284,0.546985,58699.0,58697.0,0.06795885]
[1726561511586,0.0008,58698.0,58697.0,0.06795885]
[1726561512778,0.085986,58698.0,58697.0,0.06795885]
[1726561513082,0.086986,58698.0,58697.0,0.06795885]
[1726561515192,0.087986,58698.0,58697.0,0.06795885]
[1726561515393,0.087986,58698.0,58696.0,0.06795885]
[1726561515692,0.0008,58697.0,58696.0,0.06789653]
[1726561515884,0.0008,58697.0,58696.0,0.15308453]
[1726561516792,0.0018,58697.0,58696.0,0.15308453]
[1726561517177,0.086987,58697.0,58696.0,0.15308453]
[1726561517677,0.09648641,58697.0,58696.0,0.15308453]
[1726561517880,0.01129941,58697.0,58696.0,0.085188]
[1726561518083,0.11129941,58697.0,58696.0,0.085188]
[1726561518779,0.11229941,58697.0,58696.0,0.085188]
[1726561519289,0.11129941,58697.0,58696.0,0.085188]
[1726561519695,0.11129941,58697.0,58696.0,0.085988]
[1726561521590,0.01129941,58697.0,58696.0,0.185988]
[1726561522190,0.01129941,58697.0,58696.0,0.085988]
[1726561522685,0.01129941,58697.0,58696.0,0.185988]
[1726561523391,0.3608,58699.0,58698.0,0.085186]
[1726561523580,0.004,58704.0,58703.0,0.085178]
[1726561523780,0.00255523,58706.0,58705.0,0.085175]
[1726561524101,0.3648,58712.0,58711.0,0.085167]
[1726561524385,0.3608,58712.0,58711.0,0.185167]
[1726561524775,0.3608,58718.0,58716.0,0.085159]
[1726561525006,0.37027595,58718.0,58716.0,0.25301163]
[1726561525190,0.3608,58718.0,58716.0,0.185159]
[1726561525985,0.01678,58717.0,58716.0,0.085159]
[1726561526192,0.01678,58717.0,58716.0,0.15298544]
[1726561526393,0.03078,58717.0,58716.0,0.20008544]
[1726561526781,0.03078,58717.0,58716.0,0.132259]
[1726561527292,0.03078,58717.0,58716.0,0.20010283]
[1726561527988,0.03078,58717.0,58716.0,0.132259]
[1726561530184,0.03078,58717.0,58716.0,0.18310847]
[1726561531295,0.027,58717.0,58716.0,0.18310847]
[1726561532285,0.027,58717.0,58716.0,0.132259]
[1726561532686,0.3878,58717.0,58716.0,0.132259]
[1726561535397,0.027,58717.0,58716.0,0.132259]
[1726561535604,0.3878,58717.0,58716.0,0.132259]
[1726561537197,0.3878,58717.0,58716.0,0.085159]
[1726561541193,0.3878,58717.0,58715.0,0.05084947]
[1726561541398,0.085959,58716.0,58715.0,0.08516]
[1726561542489,0.0008,58716.0,58715.0,0.08516]
[1726561543099,0.0148,58716.0,58715.0,0.08516]
[1726561544398,0.0268,58716.0,58715.0,0.08516]
[1726561546292,0.0268,58716.0,58715.0,0.13600947]
[1726561546687,0.0268,58716.0,58715.0,0.08516]
[1726561547297,0.0268,58716.0,58715.0,0.13600947]
[1726561547901,0.0268,58716.0,58715.0,0.08516]
[1726561548297,0.0268,58716.0,58715.0,0.15300383]
[1726561549306,0.0268,58716.0,58715.0,0.08516]
[1726561551290,0.0268,58716.0,58715.0,0.16997895]
[1726561552202,0.0268,58716.0,58715.0,0.18775298]
[1726561552403,0.0268,58716.0,58715.0,0.27268356]
[1726561553206,0.0268,58716.0,58715.0,0.28959778]
[1726561561510,0.0268,58716.0,58715.0,0.1870048]
[1726561561713,0.0268,58716.0,58715.0,0.28980448]
[1726561562815,0.3876,58716.0,58715.0,0.28980448]
[1726561563506,0.0268,58716.0,58715.0,0.28980448]
[1726561563713,0.3876,58716.0,58715.0,0.28980448]
[1726561564324,0.3876,58716.0,58715.0,0.18795968]
[1726561566213,0.3676,58716.0,58715.0,0.18795968]
[1726561566417,0.3756,58716.0,58715.0,0.18795968]
[1726561566623,0.3756,58716.0,58715.0,0.18792171]
[1726561566915,0.3696,58716.0,58715.0,0.18793031]
[1726561567246,0.3746,58716.0,58715.0,0.28999897]
[1726561568326,0.3736,58716.0,58715.0,0.28999897]
[1726561568811,0.3716,58716.0,58715.0,0.28999897]
[1726561569016,0.3686,58716.0,58715.0,0.28999897]
[1726561569719,0.3696,58716.0,58715.0,0.28999897]
[1726561569917,0.3696,58716.0,58715.0,0.18793031]
[1726561571022,0.3696,58716.0,58715.0,0.28995757]
[1726561572624,0.454759,58716.0,58715.0,0.10277031]
[1726561573620,0.454759,58716.0,58715.0,0.18793131]
[1726561575721,0.454759,58716.0,58715.0,0.10277031]
[1726561576548,0.085162,58714.0,58713.0,0.087606]
[1726561576719,0.185162,58714.0,58713.0,0.087606]
[1726561576921,0.185562,58714.0,58713.0,0.00255476]
[1726561577624,0.186562,58714.0,58713.0,0.00255476]
[1726561578027,0.189562,58714.0,58713.0,0.00255476]
[1726561578922,0.086562,58714.0,58713.0,0.00255476]
[1726561579122,0.190562,58714.0,58713.0,0.00255476]
[1726561579322,0.191562,58714.0,58713.0,0.00255476]
[1726561579829,0.199562,58714.0,58713.0,0.00255476]
[1726561580027,0.291724,58714.0,58713.0,0.00255476]
[1726561580330,0.106562,58714.0,58713.0,0.00255476]
[1726561580539,0.206562,58714.0,58713.0,0.00255476]
[1726561581827,0.207562,58714.0,58713.0,0.00255476]
[1726561582418,0.195562,58714.0,58713.0,0.00255476]
[1726561582615,0.207562,58714.0,58713.0,0.00255476]
[1726561583027,0.195562,58714.0,58713.0,0.00255476]
[1726561583236,0.208562,58714.0,58713.0,0.00255476]
[1726561586338,0.208562,58714.0,58713.0,0.07050787]
[1726561587224,0.212342,58714.0,58713.0,0.07050787]
[1726561588025,0.573142,58714.0,58713.0,0.07050787]
[1726561588232,0.658304,58714.0,58713.0,0.07050787]
[1726561588627,1.64434,58714.0,58706.0,0.09305124]
[1726561588829,0.4612,58707.0,58705.0,0.08505124]
[1726561589028,0.085175,58705.0,58704.0,0.08505124]
[1726561589224,0.085177,58704.0,58703.0,0.08505124]
[1726561589428,0.185177,58704.0,58703.0,0.19149686]
[1726561589820,0.085178,58703.0,58702.0,0.08505124]
[1726561590035,0.085178,58703.0,58702.0,0.29147079]
[1726561590036,0.0004,58703.0,58702.0,0.29147079]
[1726561590229,0.0004,58703.0,58702.0,0.29159955]
[1726561591638,0.01064438,58704.0,58703.0,0.085778]
[1726561591936,0.00964438,58704.0,58703.0,0.19259755]
[1726561592143,0.0004,58705.0,58704.0,0.085177]
[1726561592333,0.0004,58705.0,58704.0,0.085577]
[1726561592541,0.185575,58705.0,58704.0,0.085577]
[1726561593043,0.55558163,58705.0,58704.0,0.0016]
[1726561593332,0.55658163,58705.0,58704.0,0.0016]
[1726561594744,0.55958163,58705.0,58704.0,0.0016]
[1726561597334,0.64475663,58705.0,58704.0,0.0016]
[1726561597838,0.170362,58701.0,58700.0,0.00255514]
[1726561598037,0.631162,58701.0,58700.0,0.00255514]
[1726561598835,0.631962,58701.0,58700.0,0.00255514]
[1726561599135,0.631962,58701.0,58700.0,0.00555514]
[1726561599932,0.691962,58701.0,58700.0,0.00555514]
[1726561600442,0.691962,58701.0,58700.0,0.003]
[1726561601039,0.691962,58701.0,58700.0,0.005]
[1726561604245,0.085187,58697.0,58696.0,0.008]
[1726561604542,0.085194,58692.0,58691.0,0.008]
[1726561604744,0.085197,58690.0,58689.0,0.085198]
[1726561604947,0.085997,58690.0,58689.0,0.085198]
[1726561605129,0.085197,58690.0,58689.0,0.085198]
[1726561605334,0.52248,58692.0,58688.0,0.0496]
[1726561605335,0.085199,58689.0,58688.0,0.0496]
[1726561605551,0.080999,58689.0,58688.0,0.0496]
[1726561607934,0.081999,58689.0,58688.0,0.0496]
[1726561608135,0.082999,58689.0,58688.0,0.0496]
[1726561609447,0.082999,58689.0,58688.0,0.04956]
[1726561610451,0.081999,58689.0,58688.0,0.04956]
[1726561610639,0.082999,58689.0,58688.0,0.04956]
[1726561610840,0.0925218,58689.0,58688.0,0.04956]
[1726561613245,0.0925218,58689.0,58688.0,0.13476]
[1726561613449,0.0123228,58689.0,58688.0,0.13476]
[1726561614639,0.0975218,58689.0,58688.0,0.13476]
[1726561615449,0.2575218,58689.0,58688.0,0.13476]
[1726561618551,0.2575218,58689.0,58688.0,0.04956]
[1726561621956,0.2575218,58689.0,58687.0,0.0911]
[1726561621957,0.0852,58688.0,58687.0,0.0461]
[1726561622170,0.1712,58688.0,58687.0,0.0461]
[1726561623059,0.1712,58688.0,58681.0,0.08491494]
[1726561623060,0.085209,58682.0,58681.0,0.08491494]
[1726561623260,0.546809,58682.0,58681.0,0.08491494]
[1726561623949,0.085216,58677.0,58676.0,0.08491494]